Workbook

Sheet PRESUPUESTO 2021 (hidden)
A2: DATOS TOMADOS DEL BOS HT RESPECTO DE PD
A3: Programa | B3: SUBPROGRAMA | C3: OBJETIVO | D3: PRESUPUESTO PROGRAMADO | E3: PRESUPUESTO EJECUTADO | F3: PRESUPUESTO POR EJECUTAR | J3: PRESUPUESTO PROGRAMADO | K3: PRESUPUESTO EJECUTADO I TRIMESTRE | L3: PRESUPUESTO EJECUTADO I SEMESTRE | M3: PRESUPUESTO EJECUTADO III TRIMESTRE | N3: PRESUPUESTO EJECUTADO IV TRIMESTRE | P3: Resumen mes de abril SARI (REMUNERACIONES POR SUBPROGRAMA)
A4: 100 | B4: INFORMACIÓN Y CONOCIMIENTO ESPECIALIZADO EN DERECHOS DE LAS MUJERES | C4: 01 | D4: 78905911 | E4: 0 | F4: 27055911 | I4: TOTAL BOSHT | J4: =+D6+R21 -> 407491935.5 | K4: =+E6+S21 -> 52902698.88 | L4: =+C11 -> 116792285.3 | P4: SUBPROGRAMA | Q4: GASTO MENSUAL | R4: PROYECCIÓN ANUAL | S4: I TRIMESTRE | T4: II TRIMESTRE | U4: III TRIMESTRE | V4: IV TRIMESTRE
C5: 03 | D5: 6000000 | E5: 0 | F5: 0 | I5: EN MILLONES | J5: 407.5 | K5: 52.9 | L5: 116.8 | P5: Apoyo Administrativo (AA) | Q5: 58607329.61 | R5: =+Q5*12 -> 703287955.3
C6: 08 | D6: 238600000 | E6: 10679715 | F6: 101063009.5 | P6: Atención de las mujeres en situación de violencia y prevención del femicidio (AM) | Q6: 80556581.38 | R6: =+Q6*12 -> 966678976.6 | S6: =+R6/4 -> 241669744.1 | T6: 241669744.1 | U6: 241669744.1 | V6: 241669744.1
A7: Total general | D7: 323505911 | E7: 10679715 | F7: 128118920.5 | I7: M | J7: INFORMACIÓN Y CONOCIMIENTO ESPECIALIZADO EN DERECHOS DE LAS MUJERES | K7: 323505911 | L7: 32346317.55 | M7: 277697017 | N7: 13462576.48 | P7: Conducción superior del INAMU (CS) | Q7: 61742689.15 | R7: 740912269.8
B8: EJECUCIÓN SEMESTRAL PD | P8: Dirección del Programa (DP) | Q8: 17121268.45 | R8: 205455221.4
B9: REMUNERACIONES | C9: =+S21+T21 -> 84445967.76 | P9: Gestión de Tecnologías de información y comunicaciones (TI) | Q9: 6287656.65 | R9: 75451879.8
B10: PROGRAMÁTICO SEGÚN BOSHT | C10: =+L7 -> 32346317.55 | P10: Incidencia, alianzas y construcción de capacidades en actores estratégicos de la soc civil (IS) | Q10: 15166513.63 | R10: 181998163.6
C11: =SUM(C9:C10) -> 116792285.3 | P11: Incidencia, alianzas y construcción de capacidades en el sector público (IE) | Q11: 19142429.42 | R11: 229709153
P12: Información, orientación y referencia (IO) | Q12: 21892035.57 | R12: 262704426.8
P13: Planificación, seguimiento y evaluación (PL) | Q13: 6574835.42 | R13: 78898025.04
P14: Prestación territorial del servicio (PT) | Q14: 165695319.1 | R14: 1988343829
Q15: 452786658.3 | R15: 5433439900
P18: Gestión del conociminto especializado en género y ddhh | Q18: GASTO MENSUAL | R18: PROYECCIÓN ANUAL | S18: I TRIMESTRE | T18: II TRIMESTRE | U18: III TRIMESTRE | V18: IV TRIMESTRE
P19: Unidad de Documentación (DO) | Q19: 6845254.36 | R19: =+Q19*12 -> 82143052.32 | S19: =+R19/4 -> 20535763.08 | T19: 20535763.08 | U19: 20535763.08 | V19: 20535763.08
P20: Unidad de investigación (IN) | Q20: 7229073.6 | R20: =+Q20*12 -> 86748883.2 | S20: =+R20/4 -> 21687220.8 | T20: =+S20 -> 21687220.8 | U20: =+T20 -> 21687220.8 | V20: =+U20 -> 21687220.8
P21: TOTAL DE PD | R21: =SUM(R19:R20) -> 168891935.5 | S21: =SUM(S19:S20) -> 42222983.88 | T21: 42222983.88 | U21: 42222983.88 | V21: 42222983.88
A27: DATOS TOMADOS DEL BOS HT RESPECTO DE OESS
A28: Programa | B28: SUBPROGRAMA | C28: OBJETIVO | D28: PARTIDA | E28: PRESUPUESTO PROGRAMADO | F28: PRESUPUESTO EJECUTADO | G28: PRESUPUESTO POR EJECUTAR | J28: PRESUPUESTO PROGRAMADO | K28: PRESUPUESTO EJECUTADO I TRIMESTRE | L28: PRESUPUESTO EJECUTADO I SEMESTRE | M28: PRESUPUESTO EJECUTADO III TRIMESTRE | N28: PRESUPUESTO EJECUTADO IV TRIMESTRE | P28: Resumen mes de abril SARI (REMUNERACIONES POR SUBPROGRAMA)
A29: 200 | B29: CAPACITACIÓN_Y_FORMACIÓN Y ASESORIA CON LAS MUJERES | C29: 03 | D29: 10404 | E29: 9500000 | F29: 0 | G29: 9500000 | I29: TOTAL BOSHT | J29: =+E38+R52 -> 370334264.2 | K29: =+E31+S52 -> 80881256.8 | L29: =+C43 -> 169094969.3 | P29: SUBPROGRAMA | Q29: GASTO MENSUAL | R29: PROYECCIÓN ANUAL | S29: I TRIMESTRE | T29: II TRIMESTRE | U29: III TRIMESTRE | V29: IV TRIMESTRE
D30: 10499 | E30: 16180737 | F30: 1180737 | G30: 15000000 | I30: EN MILLONES | J30: 370.3 | K30: 80.8 | L30: 169.1 | P30: Apoyo Administrativo (AA) | Q30: 58607329.61 | R30: =+Q30*12 -> 703287955.3
D31: 10501 | E31: 235500 | F31: 0 | G31: 235500 | P31: Atención de las mujeres en situación de violencia y prevención del femicidio (AM) | Q31: 80556581.38 | R31: =+Q31*12 -> 966678976.6 | S31: =+R31/4 -> 241669744.1 | T31: 241669744.1 | U31: 241669744.1 | V31: 241669744.1
D32: 10502 | E32: 6435000 | F32: 97250 | G32: 6330750 | P32: Conducción superior del INAMU (CS) | Q32: 61742689.15 | R32: 740912269.8
D33: 10701 | E33: 10000000 | F33: 4279690.95 | G33: 3467600 | P33: Dirección del Programa (DP) | Q33: 17121268.45 | R33: 205455221.4
A34: 300 | B34: ASISTENCIA TÉCNICA PARA ACTORES ESTRATÉGICOS | C34: 03 | D34: 10502 | E34: 200000 | F34: 0 | G34: 200000 | P34: Gestión de Tecnologías de información y comunicaciones (TI) | Q34: 6287656.65 | R34: 75451879.8
B35: ASISTENCIA TÉCNICA POLÍTICAS PÚBLICAS | C35: 03 | D35: 10404 | E35: 4000000 | F35: 0 | G35: 0 | P35: Incidencia, alianzas y construcción de capacidades en actores estratégicos de la soc civil (IS) | Q35: 15166513.63 | R35: 181998163.6
D36: 10502 | E36: 200000 | F36: 0 | G36: 200000 | P36: Incidencia, alianzas y construcción de capacidades en el sector público (IE) | Q36: 19142429.42 | R36: 229709153
D37: 10701 | E37: 1000000 | F37: 0 | G37: 1000000 | P37: Información, orientación y referencia (IO) | Q37: 21892035.57 | R37: 262704426.8
A38: Total general | E38: 47751237 | F38: 5557677.95 | G38: 35933850 | P38: Planificación, seguimiento y evaluación (PL) | Q38: 6574835.42 | R38: 78898025.04
P39: Prestación territorial del servicio (PT) | Q39: 165695319.1 | R39: 1988343829
B40: EJECUCIÓN SEMESTRAL OESS | Q40: 452786658.3 | R40: 5433439900
B41: REMUNERACIONES | C41: =+S52+T52 -> 161291513.6
B42: PROGRAMÁTICO SEGÚN BOSHT | C42: 7803455.7
B43: TOTAL SEMESTRAL | C43: =SUM(C41:C42) -> 169094969.3
P44: OESS (REMUNERACIOES DE LAS UNIDADES REGIONALES) | Q44: GASTO MENSUAL | R44: PROYECCIÓN ANUAL | S44: I TRIMESTRE | T44: II TRIMESTRE | U44: III TRIMESTRE | V44: IV TRIMESTRE
P45: Unidad Regional Brunca (RB) | Q45: 22734685.15 | R45: =+(Q45*18.5%)*12 -> 50471001.03 | S45: =+(Q45*18.5%)*3 -> 12617750.26 | T45: =+S45 -> 12617750.26 | U45: 12617750.26 | V45: 12617750.26
P46: Unidad Regional Central sede Occidente (RA) | Q46: 9929313.65 | R46: =+(Q46*18.5%)*12 -> 22043076.3 | S46: =+(Q46*18.5%)*3 -> 5510769.076 | T46: 5510769.076 | U46: 5510769.076 | V46: 5510769.076
P47: Unidad Regional Central sede Oriente (RO) | Q47: 16461294.57 | R47: 36544073.95 | S47: 9136018.486 | T47: 9136018.486 | U47: 9136018.486 | V47: 9136018.486
P48: Unidad Regional Chorotega (RG) | Q48: 25308607.59 | R48: 56185108.85 | S48: 14046277.21 | T48: 14046277.21 | U48: 14046277.21 | V48: 14046277.21
P49: Unidad Regional Huetar Caribe (RC) | Q49: 24120919.16 | R49: 53548440.54 | S49: 13387110.13 | T49: 13387110.13 | U49: 13387110.13 | V49: 13387110.13
P50: Unidad Regional Huetar Norte (RN) | Q50: 24033636.06 | R50: 53354672.05 | S50: 13338668.01 | T50: 13338668.01 | U50: 13338668.01 | V50: 13338668.01
P51: Unidad Regional Pacífico Central (RP) | Q51: 22719213.73 | R51: 50436654.48 | S51: 12609163.62 | T51: 12609163.62 | U51: 12609163.62 | V51: 12609163.62
Q52: =SUM(Q45:Q51) -> 145307669.9 | R52: =SUM(R45:R51) -> 322583027.2 | S52: 80645756.8 | T52: =+S52 -> 80645756.8 | U52: =+T52 -> 80645756.8 | V52: =+U52 -> 80645756.8
P54: Las profesionales destacadas en la intervención con organizaciones en las regiones, incluye a una profesional ejecutiva y una profesional operativa. La sumatoria de lo devengado es de 320 millones aproximadamente, por lo que de lo ejecutado mensualmente enlas unidades regionales se calcula un 18,5% de las remuneraciones corresponden a las prof destacadas en la OESS
A57: DATOS TOMADOS DEL BOS HT RESPECTO DE PIEG
A58: Programa | B58: SUBPROGRAMA | C58: OBJETIVO | D58: PRESUPUESTO PROGRAMADO | E58: PRESUPUESTO EJECUTADO | F58: PRESUPUESTO POR EJECUTAR | J58: PRESUPUESTO PROGRAMADO | K58: PRESUPUESTO EJECUTADO I TRIMESTRE | L58: PRESUPUESTO EJECUTADO II TRIMESTRE | M58: PRESUPUESTO EJECUTADO III TRIMESTRE | N58: PRESUPUESTO EJECUTADO IV TRIMESTRE | P58: Resumen mes de abril SARI (REMUNERACIONES POR SUBPROGRAMA)
A59: 100 | B59: APOYO_ADMINISTRATIVO_FINANCIERO | C59: 07 | D59: 10748934531 | E59: 940960797 | F59: 1189848205 | I59: TOTAL BOSHT | J59: =+D93 -> 17613078079 | L59: =+E93 -> 4762144144 | P59: SUBPROGRAMA | Q59: GASTO MENSUAL | R59: PROYECCIÓN ANUAL | S59: I TRIMESTRE | T59: II TRIMESTRE | U59: III TRIMESTRE | V59: IV TRIMESTRE
C60: 08 | D60: 5000000 | E60: 0 | F60: 5000000 | I60: EN MILLONES | J60: 17613.07 | L60: 4762.14 | P60: Apoyo Administrativo (AA) | Q60: 58607329.61 | R60: =+Q60*12 -> 703287955.3
C61: 10 | D61: 2161585072 | E61: 552744013.7 | F61: 1577292847 | P61: Atención de las mujeres en situación de violencia y prevención del femicidio (AM) | Q61: 80556581.38 | R61: =+Q61*12 -> 966678976.6 | S61: =+R61/4 -> 241669744.1 | T61: 241669744.1 | U61: 241669744.1 | V61: 241669744.1
C62: 11 | D62: 2500000 | E62: 640875.04 | F62: 1550082.96 | P62: Conducción superior del INAMU (CS) | Q62: 61742689.15 | R62: 740912269.8
B63: CONDUCCIÓN POLÍTICO ESTRATÉGICA | C63: 01 | D63: 16402880 | E63: 2282606.55 | F63: 4229000 | P63: Dirección del Programa (DP) | Q63: 17121268.45 | R63: 205455221.4
C64: 08 | D64: 37500000 | E64: 2216468.04 | F64: 28661423.17 | P64: Gestión de Tecnologías de información y comunicaciones (TI) | Q64: 6287656.65 | R64: 75451879.8
B65: GESTIÓN_TECNOLOGÍAS_INFORMACIÓN | C65: 09 | D65: 754907314 | E65: 28661769.31 | F65: 68458059.43 | P65: Incidencia, alianzas y construcción de capacidades en actores estratégicos de la soc civil (IS) | Q65: 15166513.63 | R65: 181998163.6
B66: INFORMACIÓN Y CONOCIMIENTO ESPECIALIZADO EN DERECHOS DE LAS MUJERES | C66: 01 | D66: 78905911 | E66: 0 | F66: 27055911 | P66: Incidencia, alianzas y construcción de capacidades en el sector público (IE) | Q66: 19142429.42 | R66: 229709153
C67: 03 | D67: 6000000 | E67: 0 | F67: 0 | P67: Información, orientación y referencia (IO) | Q67: 21892035.57 | R67: 262704426.8
C68: 08 | D68: 238600000 | E68: 10679715 | F68: 101063009.5 | P68: Planificación, seguimiento y evaluación (PL) | Q68: 6574835.42 | R68: 78898025.04
B69: PLANIFICACIÓN INSTITUCIONAL | C69: 08 | D69: 35300000 | E69: 15300000 | F69: 20000000 | P69: Prestación territorial del servicio (PT) | Q69: 165695319.1 | R69: 1988343829
A70: 200 | B70: APOYO_ADMINISTRATIVO_FINANCIERO | C70: 07 | D70: 0 | E70: 0 | F70: 0 | Q70: 452786658.3 | R70: 5433439900
C71: 10 | D71: 4380990361 | E71: 1127130451 | F71: 3251094003
B72: ATENCIÓN DIRECTA A MUJERES | C72: 03 | D72: 8000000 | E72: 2463394.57 | F72: 3650000
C73: 04 | D73: 564891000 | E73: 91912827.43 | F73: 144207979 | P73: Gestión del conociminto especializado en género y ddhh | Q73: GASTO MENSUAL | R73: PROYECCIÓN ANUAL | S73: I TRIMESTRE | T73: II TRIMESTRE | U73: III TRIMESTRE | V73: IV TRIMESTRE
B74: CAPACITACIÓN_Y_FORMACIÓN Y ASESORIA CON LAS MUJERES | C74: 01 | D74: 4303243 | E74: 72000 | F74: 4231243 | P74: Unidad de Documentación (DO) | Q74: 6845254.36 | R74: =+Q74*12 -> 82143052.32 | S74: =+R74/4 -> 20535763.08 | T74: 20535763.08 | U74: 20535763.08 | V74: 20535763.08
C75: 03 | D75: 1892351237 | E75: 7555277.95 | F75: 1541231662 | P75: Unidad de investigación (IN) | Q75: 7229073.6 | R75: =+Q75*12 -> 86748883.2 | S75: =+R75/4 -> 21687220.8 | T75: =+S75 -> 21687220.8 | U75: =+T75 -> 21687220.8 | V75: =+U75 -> 21687220.8
C76: 04 | D76: 2440000 | E76: 0 | F76: 2440000 | P76: TOTAL DE PD | R76: =SUM(R74:R75) -> 168891935.5 | S76: =SUM(S74:S75) -> 42222983.88 | T76: 42222983.88 | U76: 42222983.88 | V76: 42222983.88
C77: 05 | D77: 10429626 | E77: 0 | F77: 10389626
C78: 06 | D78: 150000 | E78: 0 | F78: 150000
B79: DIRECCIÓN DEL PROGRAMA | C79: 01 | D79: 5500000 | E79: 660100 | F79: 3378344
C80: 08 | D80: 8964000 | E80: 649360 | F80: 8200240
A81: 300 | B81: APOYO_ADMINISTRATIVO_FINANCIERO | C81: 10 | D81: 537641940.7 | E81: 149071850.7 | F81: 388410090
B82: ASISTENCIA TÉCNICA PARA ACTORES ESTRATÉGICOS | C82: 03 | D82: 200000 | E82: 0 | F82: 200000
C83: 05 | D83: 17761000 | E83: 0 | F83: 15636000
B84: ASISTENCIA TÉCNICA POLÍTICAS PÚBLICAS | C84: 01 | D84: 25511100 | E84: 189210 | F84: 25228770
C85: 02 | D85: 100000 | E85: 0 | F85: 100000 | J85: PRESUPUESTO VCM SECTOR SEGURIDAD AL SEMESTRE 1
C86: 03 | D86: 5200000 | E86: 0 | F86: 1200000 | J86: PRESUPUESTO PROGRAMADO | K86: PRESUPUESTO EJECUTADO I TRIMESTRE | L86: PRESUPUESTO EJECUTADO I SEMESTRE | M86: PRESUPUESTO EJECUTADO III TRIMESTRE | N86: PRESUPUESTO EJECUTADO IV TRIMESTRE
C87: 04 | D87: 16400000 | E87: 0 | F87: 16400000 | J87: 1531569977 | K87: 333582571.6 | L87: 707552154.3
C88: 06 | D88: 125000 | E88: 0 | F88: 125000 | J88: 1531.6 | K88: 333.6 | L88: 707.55
B89: CONDUCCIÓN POLÍTICO ESTRATÉGICA | C89: 01 | D89: 2000000 | E89: 0 | F89: 2000000
B90: DIRECCIÓN DEL PROGRAMA | C90: 08 | D90: 2900000 | E90: 0 | F90: 2900000
A91: Total general | D91: 2.157149422e+10 | E91: 2933190716 | F91: 8444331495
C93: PIEG | D93: 17613078079 | E93: 4762144144
C94: PD | D94: =+J4 -> 407491935.5 | E94: =+L4 -> 116792285.3
C95: OESS | D95: =+J29 -> 370334264.2 | E95: =+L29 -> 169094969.3 | G95: 6573833783
C96: PLANOVI | D96: =+J132 -> 225391449.2 | E96: =+L132 -> 107495724.6
C97: PAM | D97: =+J155 -> 1423628512 | E97: =+L155 -> 710754505.9
C98: VCM | D98: 1531569977 | E98: =+L87 -> 707552154.3
D99: =SUM(D93:D98) -> 2.157149422e+10 | E99: =SUM(E93:E98) -> 6573833783
D102: =+D94+D95+D96+D97+D98 -> 3958416137 | E102: =+E94+E95+E96+E97+E98 -> 1811689639
D103: =+D91 -> 2.157149422e+10 | E103: =+E91 -> 2933190716
B104: EJECUCIÓN SEMESTRAL PIEG | D104: =+D103-D102 -> 1.761307808e+10 | E104: =+E103-E102 -> 1121501077 | F104: 17613 | G104: 2053.7
B105: REMUNERACIONES | E105: =+E103-E102 -> 1121501077
B106: PROGRAMÁTICO SEGÚN BOSHT
B107: TOTAL SEMESTRAL
A130: DATOS TOMADOS DEL BOS HT RESPECTO DE PLANOVI
A131: Programa | B131: SUBPROGRAMA | C131: OBJETIVO | D131: DEPTO | E131: PRESUPUESTO PROGRAMADO | F131: PRESUPUESTO EJECUTADO | G131: PRESUPUESTO POR EJECUTAR | J131: PRESUPUESTO PROGRAMADO | K131: PRESUPUESTO EJECUTADO I TRIMESTRE | L131: PRESUPUESTO EJECUTADO I SEMESTRE | M131: PRESUPUESTO EJECUTADO III TRIMESTRE | N131: PRESUPUESTO EJECUTADO IV TRIMESTRE | P131: Resumen mes de abril SARI (REMUNERACIONES POR SUBPROGRAMA)
A132: 100 | B132: INFORMACIÓN Y CONOCIMIENTO ESPECIALIZADO EN DERECHOS DE LAS MUJERES | C132: 01 | D132: VG | E132: 10000000 | F132: 0 | G132: 10000000 | I132: TOTAL BOSHT | J132: =+E134+R148 -> 225391449.2 | K132: =+F134+S148 -> 53747862.3 | L132: =+C139 -> 107495724.6 | P132: SUBPROGRAMA | Q132: GASTO MENSUAL | R132: PROYECCIÓN ANUAL | S132: I TRIMESTRE | T132: II TRIMESTRE | U132: III TRIMESTRE | V132: IV TRIMESTRE
A133: 300 | B133: ASISTENCIA TÉCNICA POLÍTICAS PÚBLICAS | C133: 01 | D133: VG | E133: 400000 | F133: 0 | G133: 400000 | I133: EN MILLONES | J133: 225.4 | K133: 53.7 | L133: 107.5 | P133: Apoyo Administrativo (AA) | Q133: 58607329.61 | R133: =+Q133*12 -> 703287955.3
A134: Total general | E134: 10400000 | F134: 0 | G134: 10400000 | P134: Atención de las mujeres en situación de violencia y prevención del femicidio (AM) | Q134: 80556581.38 | R134: =+Q134*12 -> 966678976.6 | S134: =+R134/4 -> 241669744.1 | T134: 241669744.1 | U134: 241669744.1 | V134: 241669744.1
P135: Conducción superior del INAMU (CS) | Q135: 61742689.15 | R135: 740912269.8
B136: EJECUCIÓN SEMESTRAL PLANOVI | P136: Dirección del Programa (DP) | Q136: 17121268.45 | R136: 205455221.4
B137: REMUNERACIONES | C137: =+S148+T148 -> 107495724.6 | P137: Gestión de Tecnologías de información y comunicaciones (TI) | Q137: 6287656.65 | R137: 75451879.8
B138: PROGRAMÁTICO SEGÚN BOSHT | C138: 0 | P138: Incidencia, alianzas y construcción de capacidades en actores estratégicos de la soc civil (IS) | Q138: 15166513.63 | R138: 181998163.6
B139: TOTAL SEMESTRAL | C139: =SUM(C137:C138) -> 107495724.6 | P139: Incidencia, alianzas y construcción de capacidades en el sector público (IE) | Q139: 19142429.42 | R139: 229709153
P140: Información, orientación y referencia (IO) | Q140: 21892035.57 | R140: 262704426.8
P141: Planificación, seguimiento y evaluación (PL) | Q141: 6574835.42 | R141: 78898025.04
P142: Prestación territorial del servicio (PT) | Q142: 165695319.1 | R142: 1988343829
Q143: 452786658.3 | R143: 5433439900
P145: PLANOVI | Q145: GASTO MENSUAL | R145: PROYECCIÓN ANUAL | S145: I TRIMESTRE | T145: II TRIMESTRE | U145: III TRIMESTRE | V145: IV TRIMESTRE
P146: Departamento de Violencia de Género (VI) | Q146: 17915954.1 | R146: =+Q146*12 -> 214991449.2 | S146: =+R146/4 -> 53747862.3 | T146: =+S146 -> 53747862.3 | U146: =+T146 -> 53747862.3 | V146: =+U146 -> 53747862.3
R148: =SUM(R146:R147) -> 214991449.2 | S148: =SUM(S146:S147) -> 53747862.3 | T148: 53747862.3 | U148: 53747862.3 | V148: 53747862.3
A153: DATOS TOMADOS DEL BOS HT RESPECTO DE PAM
A154: Programa | B154: SUBPROGRAMA | C154: OBJETIVO | D154: DEPTO | E154: PRESUPUESTO PROGRAMADO | F154: PRESUPUESTO EJECUTADO | G154: PRESUPUESTO POR EJECUTAR | J154: PRESUPUESTO PROGRAMADO | K154: PRESUPUESTO EJECUTADO I TRIMESTRE | L154: PRESUPUESTO EJECUTADO I SEMESTRE | M154: PRESUPUESTO EJECUTADO III TRIMESTRE | N154: PRESUPUESTO EJECUTADO IV TRIMESTRE | P154: Resumen mes de abril SARI (REMUNERACIONES POR SUBPROGRAMA)
A155: 200 | B155: CAPACITACIÓN_Y_FORMACIÓN Y ASESORIA CON LAS MUJERES | C155: 01 | D155: RA | E155: 400000 | F155: 0 | G155: 400000 | I155: TOTAL BOSHT | J155: =+E158+R177 -> 1423628512 | K155: =+GETPIVOTDATA("PRESUPUESTO EJECUTADO",$A$154)+S177 -> 355349252.9 | L155: =+C163 -> 710754505.9 | P155: SUBPROGRAMA | Q155: GASTO MENSUAL | R155: PROYECCIÓN ANUAL | S155: I TRIMESTRE | T155: II TRIMESTRE | U155: III TRIMESTRE | V155: IV TRIMESTRE
D156: RN | E156: 1669500 | F156: 72000 | G156: 1597500 | I156: EN MILLONES | J156: 1423.6 | K156: 355.3 | L156: 710.75 | P156: Apoyo Administrativo (AA) | Q156: 58607329.61 | R156: =+Q156*12 -> 703287955.3
D157: RO | E157: 450000 | F157: 0 | G157: 450000 | P157: Atención de las mujeres en situación de violencia y prevención del femicidio (AM) | Q157: 80556581.38 | R157: =+Q157*12 -> 966678976.6 | S157: =+R157/4 -> 241669744.1 | T157: 241669744.1 | U157: 241669744.1 | V157: 241669744.1
A158: Total general | E158: 2519500 | F158: 72000 | G158: 2447500 | P158: Conducción superior del INAMU (CS) | Q158: 61742689.15 | R158: 740912269.8
P159: Dirección del Programa (DP) | Q159: 17121268.45 | R159: 205455221.4
B160: EJECUCIÓN SEMESTRAL PAM | P160: Gestión de Tecnologías de información y comunicaciones (TI) | Q160: 6287656.65 | R160: 75451879.8
B161: REMUNERACIONES | C161: =+S177+T177 -> 710554505.9 | P161: Incidencia, alianzas y construcción de capacidades en actores estratégicos de la soc civil (IS) | Q161: 15166513.63 | R161: 181998163.6
B162: PROGRAMÁTICO SEGÚN BOSHT | C162: 200000 | P162: Incidencia, alianzas y construcción de capacidades en el sector público (IE) | Q162: 19142429.42 | R162: 229709153
B163: TOTAL SEMESTRAL | C163: =SUM(C161:C162) -> 710754505.9 | P163: Información, orientación y referencia (IO) | Q163: 21892035.57 | R163: 262704426.8
P164: Planificación, seguimiento y evaluación (PL) | Q164: 6574835.42 | R164: 78898025.04
P165: Prestación territorial del servicio (PT) | Q165: 165695319.1 | R165: 1988343829
Q166: 452786658.3 | R166: 5433439900
P169: PAM (PRESTACIÓN TERRITORIAL DEL SERVICIO MENOS LO DE OESS | Q169: GASTO MENSUAL | R169: PROYECCIÓN ANUAL | S169: I TRIMESTRE | T169: II TRIMESTRE | U169: III TRIMESTRE | V169: IV TRIMESTRE
P170: Unidad Regional Brunca (RB) | Q170: 22734685.15 | R170: =+(Q170*81.5%)*12 -> 222345220.8 | S170: =+R170/4 -> 55586305.19 | T170: 20535763.08 | U170: 20535763.08 | V170: 20535763.08
P171: Unidad Regional Central sede Occidente (RA) | Q171: 9929313.65 | R171: =+(Q171*81.5%)*12 -> 97108687.5 | S171: =+R171/4 -> 24277171.87 | T171: =+S171 -> 24277171.87 | U171: =+T171 -> 24277171.87 | V171: =+U171 -> 24277171.87
P172: Unidad Regional Central sede Oriente (RO) | Q172: 16461294.57 | R172: 160991460.9 | S172: =+R172/4 -> 40247865.22 | T172: =SUM(T170:T171) -> 44812934.95 | U172: =SUM(U170:U171) -> 44812934.95 | V172: 44812934.95
P173: Unidad Regional Chorotega (RG) | Q173: 25308607.59 | R173: 247518182.2 | S173: 61879545.56 | T173: =SUM(T171:T172) -> 69090106.83 | U173: 69090106.83 | V173: 69090106.83
P174: Unidad Regional Huetar Caribe (RC) | Q174: 24120919.16 | R174: 235902589.4 | S174: 58975647.35 | T174: 113903041.8 | U174: 113903041.8 | V174: 113903041.8
P175: Unidad Regional Huetar Norte (RN) | Q175: 24033636.06 | R175: 235048960.7 | S175: 58762240.17 | T175: 182993148.6 | U175: 182993148.6 | V175: 182993148.6
P176: Unidad Regional Pacífico Central (RP) | Q176: 22719213.73 | R176: 222193910.3 | S176: 55548477.57 | T176: 296896190.4 | U176: 296896190.4 | V176: 296896190.4
Q177: =SUM(Q170:Q176) -> 145307669.9 | R177: =SUM(R170:R176) -> 1421109012 | S177: =SUM(S170:S176) -> 355277252.9 | T177: =+S177 -> 355277252.9 | U177: =+T177 -> 355277252.9 | V177: =+U177 -> 355277252.9

Sheet ACTIV PRESUP (hidden)
A2: COD SUBPROG | B2: SUBPROGRAMA | C2: Suma de PRES.MODIFIC | D2: Suma de PRES. EJECU | E2: Suma de RESERVA | F2: Suma de X EJECUTAR
A3: A | B3: APOYO_ADMINISTRATIVO_FINANCIERO | C3: 17836651905 | D3: 6117558656 | E3: 7083028548 | F3: 4636064702
A4: B | B4: PLANIFICACIÓN INSTITUCIONAL | C4: 35300000 | D4: 15300000 | E4: 20000000 | F4: 0
A5: C | B5: GESTIÓN_TECNOLOGÍAS_INFORMACIÓN | C5: 754907314 | D5: 89904993.28 | E5: 641369374.1 | F5: 23632946.61
A6: D | B6: CONDUCCIÓN POLÍTICO ESTRATÉGICA | C6: 55902880 | D6: 7225242.26 | E6: 13787214.57 | F6: 34890423.17
A7: E | B7: DIRECCIÓN DEL PROGRAMA | C7: 17364000 | D7: 1988460 | E7: 2196400 | F7: 13179140
A8: F | B8: ATENCIÓN DIRECTA A MUJERES | C8: 572891000 | D8: 227754061.6 | E8: 228781586.3 | F8: 116355352.1
A9: G | B9: CAPACITACIÓN_Y_FORMACIÓN Y ASESORIA CON LAS MUJERES | C9: 1909674106 | D9: 79246532.7 | E9: 316323872.5 | F9: 1514103701
A10: K | B10: ASISTENCIA TÉCNICA PARA ACTORES ESTRATÉGICOS | C10: 17961000 | D10: 2214710.22 | E10: 6422289.78 | F10: 9324000
A11: L | B11: ASISTENCIA TÉCNICA POLÍTICAS PÚBLICAS | C11: 47336100 | D11: 294810 | E11: 23721278 | F11: 23320012
A12: M | B12: INFORMACIÓN Y CONOCIMIENTO ESPECIALIZADO EN DERECHOS DE LAS MUJERES | C12: 323505911 | D12: 32346317.55 | E12: 277697017 | F12: 13462576.48
A13: Total general | C13: 21571494216 | D13: 6573833783 | E13: 8613327580 | F13: 6384332853
A15: OESS SEMESTRAL
A16: Programa | B16: SUBPROGRAMA | C16: OBJETIVO | D16: PARTIDA | E16: Suma de PRES.MODIFIC | F16: Suma de PRES. EJECU | G16: Suma de RESERVA | H16: Suma de X EJECUTAR
A17: 200 | B17: CAPACITACIÓN_Y_FORMACIÓN Y ASESORIA CON LAS MUJERES | C17: 03 | D17: 10404 | E17: 9500000 | F17: 0 | G17: 9500000 | H17: 0
D18: 10499 | E18: 16180737 | F18: 1180737 | G18: 15000000 | H18: 0
D19: 10501 | E19: 235500 | F19: 0 | G19: 0 | H19: 235500
D20: 10502 | E20: 6435000 | F20: 177650 | G20: 31100 | H20: 6226250
D21: 10701 | E21: 10000000 | F21: 6445068.7 | G21: 3460504.51 | H21: 94426.79
A22: 300 | B22: ASISTENCIA TÉCNICA PARA ACTORES ESTRATÉGICOS | C22: 03 | D22: 10502 | E22: 200000 | F22: 0 | G22: 0 | H22: 200000
B23: ASISTENCIA TÉCNICA POLÍTICAS PÚBLICAS | C23: 03 | D23: 10404 | E23: 4000000 | F23: 0 | G23: 4000000 | H23: 0
D24: 10502 | E24: 200000 | F24: 0 | G24: 0 | H24: 200000
D25: 10701 | E25: 1000000 | F25: 0 | G25: 1000000 | H25: 0
A26: Total general | E26: 47751237 | F26: 7803455.7 | G26: 32991604.51 | H26: 6956176.79
A29: PAM SEMESTRAL
A30: Programa | B30: SUBPROGRAMA | C30: OBJETIVO | D30: DEPTO | E30: PARTIDA | F30: Suma de PRES.MODIFIC | G30: Suma de PRES. EJECU | H30: Suma de RESERVA | I30: Suma de X EJECUTAR
A31: 200 | B31: CAPACITACIÓN_Y_FORMACIÓN Y ASESORIA CON LAS MUJERES | C31: 01 | D31: RA | E31: 10501 | F31: 200000 | G31: 0 | H31: 0 | I31: 200000
E32: 10502 | F32: 200000 | G32: 0 | H32: 0 | I32: 200000
D33: RN | E33: 10501 | F33: 269500 | G33: 0 | H33: 0 | I33: 269500
E34: 10502 | F34: 1400000 | G34: 200000 | H34: 24000 | I34: 1176000
D35: RO | E35: 10501 | F35: 100000 | G35: 0 | H35: 0 | I35: 100000
E36: 10502 | F36: 350000 | G36: 0 | H36: 0 | I36: 350000
A37: Total general | F37: 2519500 | G37: 200000 | H37: 24000 | I37: 2295500
A40: PLANOVI SEMESTRAL
A41: Programa | B41: SUBPROGRAMA | C41: OBJETIVO | D41: DEPTO | E41: PARTIDA | F41: Suma de PRES.MODIFIC | G41: Suma de PRES. EJECU | H41: Suma de RESERVA | I41: Suma de X EJECUTAR
A42: 100 | B42: INFORMACIÓN Y CONOCIMIENTO ESPECIALIZADO EN DERECHOS DE LAS MUJERES | C42: 01 | D42: VG | E42: 10702 | F42: 10000000 | G42: 0 | H42: 0 | I42: 10000000
A43: 300 | B43: ASISTENCIA TÉCNICA POLÍTICAS PÚBLICAS | C43: 01 | D43: VG | E43: 10502 | F43: 400000 | G43: 0 | H43: 0 | I43: 400000
A44: Total general | F44: 10400000 | G44: 0 | H44: 0 | I44: 10400000
A46: PIEG SEMESTRAL
A47: Programa | B47: FUENTE | C47: Suma de PRES.MODIFIC | D47: Suma de PRES. EJECU | E47: Suma de RESERVA | F47: Suma de X EJECUTAR
A48: 100 | B48: S | C48: 8263110984 | D48: 1645121006 | E48: 6581615531 | F48: 36374446.68
B49: S-M | C49: 283607231.6 | D49: 4713445.72 | E49: 3935227.7 | F49: 274958558.1
A50: 200 | B50: S | C50: 1500000000 | D50: 0 | E50: 0 | F50: 1500000000
A51: 300 | B51: S | C51: 18500000 | D51: 0 | E51: 0 | F51: 18500000
A52: Total general | C52: 10065218216 | D52: 1649834452 | E52: 6585550759 | F52: 1829833005
C55: =10065/17613 -> 0.5714529041

Sheet Informe SEMESTRAL 2021
C2: PLAN NACIONAL DE DESARROLLO Y DE INVERSIÓN PÚBLICA DEL BICENTENARIO 2019-2022 | L2: 1. De acuerdo a lo programado | N2: Sobre ejecución
C3: Informe Semestral 2021 | L3: 2. Con riesgo de incumplimiento | N3: Subejecución
L4: 3. Con atraso crítico | N4: No ejecución
C5: INSTITUCIÓN: | D5: INAMU
B7: N° | C7: INDICADORES | D7: META PROGRAMADA | E7: META EJECUTADA | F7: PORCENTAJE DE LOGRO META | G7: ESTADO DE META | H7: PRESUPUESTO PROGRAMADO | I7: PRESUPUESTO EJECUTADO | J7: PORCENTAJE LOGRO PRESUPUESTO | K7: ESTADO DE EJECUCIÓN PRESUPUESTARIA | L7: FACTORES QUE INCIDIERON EN EL PRESUPUESTO PARA EL LOGRO DE LA META
B8: 1 | C8: Número de personas beneficiadas de las intervenciones públicas articuladas, accesibles e inclusivas para la promoción y protección de derechos humanos. | D8: 10000 | E8: 3195 | F8: =+'Informe SEMESTRAL 2021'!$E8/'Informe SEMESTRAL 2021'!$D8 -> 0.3195 | G8: 2. Con riesgo de incumplimiento | H8: 407.5 | I8: 116.8 | J8: =+'Informe SEMESTRAL 2021'!$I8/'Informe SEMESTRAL 2021'!$H8 -> 0.2866257669 | K8: Subejecución | L8: En esta meta los recursos se encuentran reservados, por lo que la ejecución se va a poder medir mejor de manera anual. La virtualidad en cuanto a las actividades programadas y las formas de medición de las mismas, han significado la baja en la ejecución de la meta
B9: 2 | C9: Número de organizaciones de la ESS con proyectos productivos que reciben capacitación, asistencia técnica o financiamiento. | D9: 15 | E9: 0 | F9: =+'Informe SEMESTRAL 2021'!$E9/'Informe SEMESTRAL 2021'!$D9 -> 0 | G9: 2. Con riesgo de incumplimiento | H9: 370.3 | I9: 169.1 | J9: =+'Informe SEMESTRAL 2021'!$I9/'Informe SEMESTRAL 2021'!$H9 -> 0.4566567648 | L9: Esta meta, al tener que ser reportadas las organizaciones al finalizar la Asistencia Técnica, la capacitación o el otorgamiento de recursos, será hasta en el reporte anual que se pueda colocar la cantidad de organizaciones con las que se ha trabajado
B10: 3 | C10: Porcentaje de acciones del Plan de Acción PIEG 2019-2022 en ejecución | D10: 0.6 | E10: 0.83 | F10: =+E10/D10 -> 1.383333333 | G10: 1. De acuerdo a lo programado | H10: 17613 | I10: =+'PRESUPUESTO 2021'!L60 -> 4762.14 | J10: =+'Informe SEMESTRAL 2021'!$I10/'Informe SEMESTRAL 2021'!$H10 -> 0.2703764265 | K10: Subejecución | L10: En la meta PIEG, se contemplan los recursos de proyectos de inversión que son de ejecución en próximos años. Es decir contempla recursos de superávit que corresponden a más del 55% del presupuesto total programado
B11: 4 | C11: Porcentaje de acciones del Plan de acción PLANOVI 2018-2022 en ejecución | D11: 0.6 | E11: 0.55 | F11: =+E11/D11 -> 0.9166666667 | G11: 1. De acuerdo a lo programado | H11: 225.4 | I11: =+'PRESUPUESTO 2021'!L133 -> 107.5 | J11: =+'Informe SEMESTRAL 2021'!$I11/'Informe SEMESTRAL 2021'!$H11 -> 0.4769299024 | L11: Los recursos se ejecuctan de acuerdo a lo programado
B12: 5 | C12: Número de mujeres atendidas por el Programa Avanzamos Mujeres según el registro de SINIRUBE | D12: 10000 | E12: 5235 | F12: =+'Informe SEMESTRAL 2021'!$E12/'Informe SEMESTRAL 2021'!$D12 -> 0.5235 | G12: 1. De acuerdo a lo programado | H12: 1424 | I12: =+'PRESUPUESTO 2021'!L156 -> 710.75 | J12: =+'Informe SEMESTRAL 2021'!$I12/'Informe SEMESTRAL 2021'!$H12 -> 0.499122191 | L12: Los recursos se ejecuctan de acuerdo a lo programado
C15: La meta PIEG y la meta PLANOVI corresponden al reporte del año 2020, por lo que se ajustó la meta programada según las fichas del indicador vigentes.

Sheet Programado
B2: 1. De acuerdo a lo programado
B4: Si el avance de la meta está de acuerdo con lo programado, responda:
B6: INDICADORES | C6: 1.2 LOGROS | D6: 1.2 FUENTE DE VERIFICACIÓN | E6: 1.3 FACTORES CONTRIBUYE AVANCE METAS SUPERIORES AL 125%
B7: Porcentaje de acciones del Plan de Acción PIEG 2019-2022 en ejecución | C7: Las acciones comprometidas en el marco del Plan de Acción PIEG avanzaron significativamente durante el año 2020, alcanzando un cumplimiento del 83% con corte a diciembre 2020. En particular, algunas de las instituciones realizaron un esfuerzo por contabilizar su aporte a la igualdad bajo la asesoría del INAMU. | D7: INFORME PLAN DE ACCIÓN PIEG 2020 | E7: Las instituciones han mostrado compromiso para ejecutar la acciones desde el inicio del plan, más aún, tomando en cuenta la naturaleza de las acciones definidas y la expresión de sus metas en el diseño planteado en el Plan de Acción 2019-2022. Además, durante el año 2020, revisando el cumplimiento de acciones con cada institución y los ajustes necesarios en el marco de la emergencia sanitaria, fueron plasmadas las metas institucionales con mayor claridad, identificando en algunos casos la inclusión o definición de metas en acciones en las cuales no se había precisado para el cumplimiento en 2020.
B8: Porcentaje de acciones del Plan de acción PLANOVI 2018-2022 en ejecución | C8: Si bien no se logró el 60% programado esto se debe a la situación de la emergencia por COVID-19 | D8: INFORME PLAN DE ACCIÓN PLANOVI 2020
B9: Número de mujeres atendidas por el Programa Avanzamos Mujeres según el registro de SINIRUBE | C9: A pesar de la virtualidad en el marco de la emergencia nacional por COVID-19, se ha logrado acoplar las capacitaciones para que las mujeres reciban la formación humana | D9: Registros administrativos del Departamento Desarrollo Regional

Sheet Con riesgo de incumplimiento
B2: 2. Con riesgo de incumplimiento
B4: Cuando el avance de la meta es menor a lo previsto y representa una amenaza controlable para su cumplimiento final, responda:
B6: Indicadores | C6: Número de personas beneficiadas de las intervenciones públicas articuladas, accesibles e inclusivas para la promoción y protección de derechos humanos.
B7: 2.1 OBSTÁCULOS | C7: El cambia a la realización de actividades a través de las plataformas de redes sociales, tienen diferentes tipos de medición, es decir según la ficha del indicador se miden personas, pero hemos tenido problemas con los reportes pues están en relación con alcances, cifras que no son compatibles además de no ser la misma unidad de medida
B8: 2.2 ACCIONES DE MEJORA
B9: Acción de mejora 1 | C9: Definir con quienes brindan los reportes la identificación de la undiad de medida para que los reportes coincidan
B10: Fecha de inicio 1 | C10: agosto
B11: Fecha en que se elimina el rezago 1 | C11: diciembre
B12: Observaciones 1 | C12: Se requieren reuniones con los equipos (los cuales son contratados dado que no se cuenta con personal propio) que reportan la información sobre las actividades virtuales de la institución
B13: Acción de mejora 2
B14: Fecha de inicio 2
B15: Fecha en que se elimina el rezago 2
B16: Observaciones 2
B17: Acción de mejora 3
B18: Fecha de inicio 3
B19: Fecha en que se elimina el rezago 3
B20: Observaciones 3
B21: 2.3. FUENTE DE VERIFICACIÓN | C21: Registros administrativos en la Unidad de Comunicación Institucional.
B23: Indicadores | C23: Número de organizaciones de la ESS con proyectos productivos que reciben capacitación, asistencia técnica o financiamiento.
B24: 2.1 OBSTÁCULOS | C24: 1. Trabajo coordinado con otras organizaciones para la intervención, por lo que la atención se programó para el segundo semestre del año en curso. 2. Persisten los problemas para identificar OESS compuestas únicamente por mujeres para desarrollar con ellas la intervención establecida. 3.Dadas las cargas laborales de los procesos institucionales, se ha tenido retrasos en la atención de las organizaciones por lo que se esta reprogramando la atención para el II Semestre.
B25: 2.2 ACCIONES DE MEJORA
B26: Acción de mejora 1 | C26: Solicitud del cronograma exacto de las intervenciones de las OESS por parte de Las Unidades Regionales
B27: Fecha de inicio 1 | C27: 19 de julio 2021
B28: Fecha en que se elimina el rezago 1 | C28: 23 de julio 2021
B29: Observaciones 1 | C29: De parte de la coordinación del Departamento de Desarrollo Regional se estaría solicitando los cronogramas detallados para el seguimiento de las intervenciones.
B30: Acción de mejora 2 | C30: Acompañamiento técnico constante para el cumplimiento del cronograma planteado por cada Unidad Regional
B31: Fecha de inicio 2 | C31: 26 de julio 2021
B32: Fecha en que se elimina el rezago 2 | C32: 27 de noviembre 2021
B33: Observaciones 2 | C33: Reuniones mensuales con los equipos de trabajo.
B34: Acción de mejora 3
B35: Fecha de inicio 3
B36: Fecha en que se elimina el rezago 3
B37: Observaciones 3
B38: 2.3. FUENTE DE VERIFICACIÓN | C38: Registros administrativos Departamento Desarrollo Regional

Sheet Atraso crítico
B2: 3. Con atraso crítico
B4: Cuando el avance de la meta es menor a lo previsto y representa una seria amenaza para su cumplimiento anual, responda:
B6: Indicadores
B7: 3.1. OBSTÁCULO
B8: 3.2. RIESGOS ASOCIADOS
B11: 3.3. ACCIONES DE MEJORA
B12: Acción de mejora 1
B13: Fecha de inicio 1
B14: Fecha en que se elimina el rezago 1
B15: Observaciones 1
B16: Acción de mejora 2
B17: Fecha de inicio 2
B18: Fecha en que se elimina el rezago 2
B19: Observaciones 2
B20: Acción de mejora 3
B21: Fecha de inicio 3
B22: Fecha en que se elimina el rezago 3
B23: Observaciones 3
B24: 3.4. FUENTES DE VERIFICACIÓN
